Cogmind - Beta 16.1 @@@ ROGUE MODE // 2026.04.09 @ 18:03:44 Player: Derk Result: Destroyed by S-27 Virus with Autogun Performance ------------- Evolutions (5) 2500 Regions Visited (18) 3600 Robots Destroyed (282) 1410 Value Destroyed (15083) 15083 Prototype IDs (37) 740 Alien Tech Used (0) 0 Bonus (10324) 10324 TOTAL SCORE: 33657 Bonus ------- High Alert Combat Kills 2463 Follower Combat Kills 3848 Entered Garrisons 1200 Used RIF Installer 2500 Built Enhanced Grunts 300 Met R17 at Cetus 500 Friendly Fire -487 Cogmind --------- Core Integrity 0/1000 Matter 300/300 Energy 99/100 System Corruption 41% Temperature Cool (98) Movement Core (50) Location -5/Garrison Parts ------- > --- POWER (1) -------- (None) > --- PROPULSION (4) --- (None) > --- UTILITY (9) ------ (None) > --- WEAPON (3) ------- (None) > --- INVENTORY (5) ---- Enhanced Armored Leg Relay Coupler [Swarmer] (36) Relay Coupler [Sentry] (22) Disruptor Cannon PL-3XN's Ring of Power Peak State ------------ > --- POWER ------------ Heavy Deuterium Engine > --- PROPULSION ------- Centrium Heavy Treads Centrium Heavy Treads > --- UTILITY ---------- Advanced Cooling System High-capacity Storage Unit Enhanced Optical Array Armor Integrity Analyzer Layered Medium Armor Plating Centrium Medium Armor Plating Centrium Medium Armor Plating Experimental Thermal Shield Relay Coupler [Grunt] > --- WEAPON ----------- Advanced KE Penetrator Advanced KE Penetrator Advanced KE Penetrator > --- INVENTORY -------- Heavy Deuterium Engine Medium Treads Centrium Heavy Treads Centrium Heavy Treads Compact Wheel Improved Cooling System Advanced Energy Well Medium Matter Pod Centrium Medium Armor Plating Relay Coupler [Swarmer] Relay Coupler [Grunt] Relay Coupler [Hunter] Advanced Variable Charge Gun Neutron Cannon Advanced KE Penetrator Long-range Missile Launcher Remote Datajack Phasing Sabre [Rating: 127] Favorites ----------- Power Improved Deuterium Engine Engine Improved Deuterium Engine Power Core Neutrino Core Reactor Light Antimatter Reactor Propulsion Light Treads Treads Light Treads Leg Enhanced Armored Leg Wheel Armored Huge Wheel Utility Improved Light Armor Plating Device Improved Cooling System Storage Large Storage Unit Processor Advanced Targeting Computer Hackware Relay Coupler [Grunt] Protection Improved Light Armor Plating Weapon Advanced KE Penetrator Energy Gun Advanced Variable Charge Gun Energy Cannon Subdweller Beam Cannon Ballistic Gun Advanced KE Penetrator Ballistic Cannon Heavy Mass Driver Launcher Shock Bomb Launcher Special Weapon Remote Datajack Impact Weapon Powered Hammer Slashing Weapon Phasing Sabre Build | -11 -10 -10 -8 -8 -7 -7 -7 -7 -6 -6 -6 -6 -6 -6 -5 -5 -5 -5 ------- Run | Yrd Mat Sub Mat Gar Fac Gar Fac Gar Fac Ext Cet Arc Hub Gar Fac Gar Fac Gar Slots Evolved 10 | . . . 4 . 2 . . . 2 . . . . . 2 . . . Power . | . . . . . . . . . . . . . . . . . . . Propulsion 2 | . . . 1 . . . . . . . . . . . 1 . . . Utility 7 | . . . 3 . 2 . . . 1 . . . . . 1 . . . Weapon 1 | . . . . . . . . . 1 . . . . . . . . . Parts Attached 227 | 7 3 5 29 13 25 17 10 17 9 25 5 . 10 8 11 7 23 3 Power 28 | 1 1 . 4 4 1 2 . 3 . 5 . . 1 2 2 . 1 1 Engine 21 | 1 1 . 4 4 1 2 . 3 . 1 . . . . 2 . 1 1 Core 3 | . . . . . . . . . . 2 . . . 1 . . . . Reactor 4 | . . . . . . . . . . 2 . . 1 1 . . . . Propulsion 38 | 2 . 1 7 1 1 3 3 1 1 6 1 . 1 2 1 1 5 1 Treads 26 | 2 . 1 5 1 . 2 2 . 1 4 1 . . 2 1 . 3 1 Leg 2 | . . . 1 . . . . . . . . . . . . . 1 . Wheel 10 | . . . 1 . 1 1 1 1 . 2 . . 1 . . 1 1 . Hover . | . . . . . . . . . . . . . . . . . . . Flight . | . . . . . . . . . . . . . . . . . . . Utility 110 | 2 1 1 9 6 16 6 5 12 6 12 2 . 5 1 7 6 13 . Device 18 | 1 . 1 2 . 2 1 1 1 . 3 1 . . 1 1 . 3 . Storage 8 | 1 1 . 2 . . . . . 1 . . . . . . 1 2 . Processor 9 | . . . 1 . . 2 . . 1 2 . . 1 . . . 2 . Hackware 34 | . . . . 2 8 1 3 5 3 1 . . . . 5 3 3 . Protection 41 | . . . 4 4 6 2 1 6 1 6 1 . 4 . 1 2 3 . Artifact . | . . . . . . . . . . . . . . . . . . . Weapon 51 | 2 1 3 9 2 7 6 2 1 2 2 2 . 3 3 1 . 4 1 Energy Gun 4 | . . . . . . . . . . . 1 . . . . . 2 1 Energy Cannon 2 | . . 1 . . . . . . . . . . 1 . . . . . Ballistic Gun 25 | 2 . 1 7 1 4 4 . . . 1 1 . 2 2 . . . . Ballistic Cannon 6 | . . . . . . . 2 1 1 . . . . . . . 2 . Launcher 7 | . 1 . 2 . 2 1 . . . . . . . 1 . . . . Special Weapon 4 | . . . . 1 1 . . . 1 . . . . . 1 . . . Impact Weapon 2 | . . 1 . . . 1 . . . . . . . . . . . . Slashing Weapon 1 | . . . . . . . . . . 1 . . . . . . . . Piercing Weapon . | . . . . . . . . . . . . . . . . . . . Special Melee Weapon . | . . . . . . . . . . . . . . . . . . . Unidentified Prototypes 13 | . . . 2 . 1 . 1 . . 1 4 . . . . . 4 . Corrupted Parts 4 | . . . . . . . . 1 . . . . . 3 . . . . System Corruption 29 | . . . . . . . . 9 . . . . . 20 . . . . Parts Lost 83 | . . 1 3 6 6 4 1 6 1 15 1 . 4 2 2 2 22 7 Power 9 | . . . . 1 . . . 1 . 2 . . . 2 1 . 1 1 Propulsion 19 | . . . 2 1 1 2 . 2 . 3 . . 1 . . . 4 3 Utility 40 | . . 1 1 3 5 2 1 3 1 8 . . 2 . . 2 10 1 Weapon 15 | . . . . 1 . . . . . 2 1 . 1 . 1 . 7 2 Highest Loss Streak 16 | . . 1 2 3 2 1 1 4 1 7 1 . 2 1 1 2 16 6 To Critical Strikes . | . . . . . . . . . . . . . . . . . . . Average Backups 13 | 4 8 13 13 13 14 14 12 11 13 15 17 17 16 17 16 17 12 4 Power . | . 1 1 . . 1 1 1 . . . 1 1 . . . . . . Propulsion 2 | 3 4 3 2 2 2 1 . . . 1 2 3 3 3 3 3 1 1 Utility 5 | . 1 4 4 4 5 7 5 5 7 3 5 5 5 6 6 7 7 2 Weapon 5 | . 2 4 6 4 4 4 4 3 4 8 7 7 7 6 5 5 2 1 Tool/Special . | . . . . . . . . . . . . . . . . . . . Unused Backups 59 | . 2 9 9 4 2 4 2 3 . 3 11 . 1 . . 5 1 3 Power 2 | . . . 1 . . 1 . . . . . . . . . . . . Propulsion 11 | . . 3 1 1 1 . . 1 . 1 2 . . . . 1 . . Utility 25 | . 1 3 1 3 . 3 1 2 . 1 3 . 1 . . 4 . 2 Weapon 20 | . 1 3 6 . 1 . 1 . . 1 6 . . . . . . 1 Tool/Special 1 | . . . . . . . . . . . . . . . . . 1 . Average Slot Usage (%) 90 | . 100 100 98 98 87 86 94 90 83 86 85 88 84 92 86 85 82 86 Engine 5 | . 14 14 9 8 7 7 7 7 6 . . . . . 1 5 3 1 Reactor 1 | . . . . . . . . . . 2 5 5 5 4 . . . . Treads 12 | . 28 28 25 27 7 8 11 6 5 10 5 5 5 6 10 7 6 11 Wheel 3 | . . . . . 6 7 6 7 6 4 5 5 2 5 . 2 3 4 Device 7 | . 14 14 13 3 1 2 5 5 . 6 11 11 4 16 8 4 4 16 Storage 7 | . 14 14 9 9 7 7 7 7 6 5 5 5 5 6 5 5 7 17 Processor 9 | . . . 4 9 7 18 15 13 5 7 11 11 12 13 9 5 6 5 Hackware 10 | . . . . 5 22 2 16 9 16 15 11 11 12 3 7 20 20 11 Protection 12 | . . . 16 15 10 14 7 15 21 12 11 11 15 13 16 12 7 . Ballistic Gun 8 | . 27 15 14 13 13 10 . . . 1 2 5 7 15 15 12 7 . Ballistic Cannon 2 | . . . . . . . 2 5 5 5 3 5 4 . . . 2 11 Special Weapon 1 | . . . . . 1 2 4 2 4 3 . . . . . . 1 3 Impact Weapon 1 | . . 5 1 . . 2 4 5 1 . . . . . . . . . Slashing Weapon 1 | . . . . . . . . . . 2 5 5 2 2 . 3 1 . Peak Build Rating 127 | 7 8 13 38 39 55 54 52 54 64 83 116 116 117 110 127 114 102 102 Average Rating 61 | 5 7 10 29 37 50 48 46 49 61 73 100 114 105 106 117 102 93 92 On Entrance 62 | . 7 8 13 38 38 49 46 45 49 63 81 116 114 103 107 109 98 96 Avg Prop Armor Cover (%) 8 | . . . 6 . 6 6 11 9 4 4 7 8 8 9 . 12 10 25 Naked Turns 3 | . . . . . . . . . . . . . . . . . . 3 Heaviest Build 107 | 12 29 36 54 53 59 76 62 60 85 97 102 102 107 93 95 93 93 80 Greatest Support 160 | 40 40 40 64 64 64 28 28 40 40 60 22 12 80 108 160 160 160 16 Greatest Overweight (x) 9 | . . . 3 . 2 5 4 3 3 7 8 8 8 9 1 2 4 4 Average Overweight (x) 1 | . . . . . . 2 2 1 2 2 7 8 5 7 . 1 1 3 Largest Inventory Capacity 20 | 8 15 15 15 15 15 15 15 15 20 20 20 20 20 20 20 20 20 20 Average Capacity 16 | 7 10 15 15 15 15 15 15 15 19 20 20 20 20 20 20 20 20 19 Most Carried 20 | 7 13 15 15 15 15 15 15 15 19 20 20 20 20 20 20 20 20 7 Average Carried 15 | 5 8 14 14 14 14 14 14 14 15 17 19 20 19 19 18 19 15 5 Final Capacity 20 | 8 15 15 15 15 15 15 15 15 20 20 20 20 20 20 20 20 20 5 Final Carried 20 | 7 12 15 15 15 15 15 15 15 19 20 20 20 20 20 20 20 5 5 Class Distribution -------------------- 28% | Mutant 18% | Bothacker-Mutant 12% | Scavenger-Tank 9% | Scavenger-Mutant 8% | Bothacker-Tank 7% | Commander-Tank 6% | Commander-Mutant 4% | Botlord-Mutant Dominant Class ---------------- Mutant | -10/Materials Mutant | -10/Subcaves Mutant | -8/Materials Mutant | -8/Garrison Hacker-Mutant | -7/Factory Bothacker-Mutant | -7/Garrison Bothacker-Mutant | -7/Factory Commander-Mutant | -7/Garrison Bothacker-Tank | -6/Factory Commander-Tank | -6/Extension Commander-Tank | -6/Cetus Commander-Tank | -6/Archives Scavenger-Tank | -6/Hub_04(d) Scavenger-Tank | -6/Garrison Scavenger-Tank | -5/Factory Bothacker-Mutant | -5/Garrison Botlord-Mutant | -5/Factory Bothacker-Tank | -5/Garrison Resources | -11 -10 -10 -8 -8 -7 -7 -7 -7 -6 -6 -6 -6 -6 -6 -5 -5 -5 -5 ----------- Run | Yrd Mat Sub Mat Gar Fac Gar Fac Gar Fac Ext Cet Arc Hub Gar Fac Gar Fac Gar Matter Collected 13305 | 318 65 503 916 1315 1300 748 319 1418 442 1314 484 116 954 261 482 1042 1061 247 Remotely 1814 | . . . . . . . . . . 1006 484 116 208 . . . . . Salvage Created 12148 | 130 16 173 1538 1476 1187 729 399 919 93 397 288 65 1276 357 435 1048 1355 267 Parts 563 | 7 4 12 60 57 58 29 23 29 5 22 13 1 65 25 17 51 65 20 Haulers Intercepted 6 | . . . 1 . . . . . . . . . 2 . 1 . 2 . Recyclers Shooed 6 | . 1 . . . 1 . 1 . . . . . . . . . 3 . Parts Field Recycled . | . . . . . . . . . . . . . . . . . . . Retrieved Matter . | . . . . . . . . . . . . . . . . . . . Parts Self-Destructed 3 | . . 3 . . . . . . . . . . . . . . . . Prevented . | . . . . . . . . . . . . . . . . . . . Parts Restored . | . . . . . . . . . . . . . . . . . . . Kills | -11 -10 -10 -8 -8 -7 -7 -7 -7 -6 -6 -6 -6 -6 -6 -5 -5 -5 -5 ------- Run | Yrd Mat Sub Mat Gar Fac Gar Fac Gar Fac Ext Cet Arc Hub Gar Fac Gar Fac Gar Combat Hostiles Destroyed 230 | . 3 7 28 27 27 17 11 16 4 7 4 1 19 10 3 14 23 9 Melee 7 | . . 1 . 1 . . . 2 . . . . . . . . 3 . Guns 114 | . . 1 20 16 17 15 . . . . 1 . 13 6 3 14 8 . Cannons 50 | . . . . . . . 5 10 4 7 3 1 6 . . . 5 9 AOE 49 | . 3 5 7 8 9 . 5 1 . . . . . 4 . . 7 . Classes Destroyed 22 | 2 1 1 9 2 . . . 1 . 1 . . 1 . . 3 1 . Worker 12 | . . . 3 . 1 . . . . . . . 2 . 1 . 5 . Builder 8 | . . . 2 . 1 . . . . . . . 2 . 1 . 2 . Tunneler 2 | 2 . . . . . . . . . . . . . . . . . . Hauler 6 | . . . 1 . . . . . . . . . 2 . 1 . 2 . Recycler 6 | 1 . . . . 1 . . . . . . . 2 . 1 . 1 . Mechanic 5 | . . . . . . . . . . 1 . . . . . . 4 . Operator 3 | . . . 1 . . . 2 . . . . . . . . . . . Watcher 5 | . . . 1 . 1 . . . . . 1 . 1 . 1 . . . Swarmer 39 | . 3 . . 4 7 4 2 2 . . . . 4 3 . 1 4 5 Cutter 2 | . . . . . . . . . . . . . . . . 2 . . Grunt 82 | . . . 19 13 11 5 4 4 . 3 . . 8 4 1 5 3 2 Brawler 4 | . . . . 1 . . 1 . 1 . . . 1 . . . . . Duelist 9 | . . . 3 . . 1 . 2 1 . . . . . . . 2 . Protector 1 | . . . . . . . . . . . . . . . . . 1 . Sentry 37 | . . . 4 8 6 5 2 3 1 3 . 1 1 2 . 1 . . Demolisher 1 | . . . . . . . . 1 . . . . . . . . . . Specialist 1 | . . . . . . . . . . . . . . . . . 1 . Hunter 13 | . . . 2 1 . 2 . . 1 . . . 1 . . 1 5 . Programmer 30 | . . . . 1 3 . 2 4 . 2 . . 3 1 2 3 7 2 Heavy 2 | . . . . . . . . . . . . . 1 . . . 1 . Behemoth 1 | . . . . . . . . . . . . . . . . 1 . . Cetus Guard 4 | . . . . . . . . . . . 4 . . . . . . . Subdweller 7 | . . 7 . . . . . . . . . . . . . . . . Savage 1 | . . . . 1 . . . . . . . . . . . . . . Infiltrator 1 | . . . . . . . . . . . . . . . . 1 . . Best Kill Streak 15 | 3 3 2 13 4 6 5 4 3 1 1 2 1 6 4 4 3 15 6 Combat Bots Only 8 | . 3 2 5 4 6 5 4 3 1 1 2 1 3 4 1 3 8 6 Max Kills in Single Turn 5 | 1 2 1 4 3 3 1 2 1 1 1 1 1 1 2 1 2 5 2 Gunslinging 1 | . . . . . . . . . . . . . . 1 . 1 . . Exploded 3 | . 2 1 3 3 3 . 2 1 . . . . . 2 . . 3 . Melee 1 | . . 1 . 1 . . . 1 . . . . . . . . 1 . Uniques/NPCs Destroyed . | . . . . . . . . . . . . . . . . . . . Combat | -11 -10 -10 -8 -8 -7 -7 -7 -7 -6 -6 -6 -6 -6 -6 -5 -5 -5 -5 -------- Run | Yrd Mat Sub Mat Gar Fac Gar Fac Gar Fac Ext Cet Arc Hub Gar Fac Gar Fac Gar Hostile Shots Fired 2436 | . 7 16 134 146 294 225 48 167 78 337 36 17 126 93 59 93 423 137 Missed 725 | . 2 4 40 46 104 89 17 55 27 97 9 3 41 23 15 28 93 32 Hits 1711 | . 5 12 94 100 190 136 31 112 51 240 27 14 85 70 44 65 330 105 Melee 37 | . . . 4 . . 4 . 1 4 1 . . 2 . . 6 15 . Projectile 1674 | . 5 12 90 100 190 132 31 111 47 239 27 14 83 70 44 59 315 105 AOE 9 | . . . . . . . . 7 . . . . . . . 2 . . Critical Strikes 54 | . . . 6 2 2 2 1 3 1 6 6 . 2 2 3 6 11 1 Part Disruptions 4 | . . . . . . . . . . 2 . . . . . . 2 . Damage Taken 25069 | . 53 323 1753 1660 1812 1430 540 1301 419 2284 508 363 1570 684 952 1661 6091 1665 Core 2351 | . 5 62 181 92 225 88 53 69 58 230 30 . 219 27 40 105 583 284 Absorbed by Shields 2566 | . . . . 60 . 57 68 394 191 625 285 . . 68 . . 818 . Reduced by Siege Mode 478 | . . . . . . . . . . . . . . . . 89 328 61 Redirected to Shielding 3 | . . . . . . . . . . . . . . . . 3 . . Ignored by Resistances 94 | . . . 94 . . . . . . . . . . . . . . . Regen/Repaired (Parts) 731 | . . . . . . . . . . . . . . . 731 . . . Core Remaining (%) 58 | 100 . 73 . 50 . . . 37 . . . . . 33 . . . . Volleys Fired 915 | 12 2 11 93 102 97 59 32 98 32 117 19 6 52 15 30 34 89 15 Largest 3 | 2 1 2 2 2 2 2 1 1 1 2 2 2 3 3 3 3 3 3 Hottest 205 | 40 30 50 108 53 56 56 65 65 65 100 100 100 155 105 105 105 205 181 Shots Fired 1438 | 24 2 20 172 158 153 94 32 103 32 120 34 12 110 37 71 89 144 31 Gun 850 | 24 . 9 153 116 119 73 . . . 4 15 6 77 34 61 87 69 3 Cannon 304 | . . . 7 . . . 14 80 23 50 17 6 31 . . . 48 28 Launcher 81 | . 2 11 12 30 9 2 6 . . . . . . 3 . . 6 . Special 203 | . . . . 12 25 19 12 23 9 66 2 . 2 . 10 2 21 . Kinetic 1116 | 24 . 9 153 116 119 73 14 80 23 54 32 12 107 34 61 87 90 28 Thermal 35 | . . . 7 . . . . . . . . . 1 . . . 27 . Explosive 34 | . 2 11 2 . 3 1 6 . . . . . . 3 . . 6 . Electromagnetic 50 | . . . 10 30 6 1 . . . . . . . . . . . 3 Robot Hit Streak 53 | 5 4 13 15 16 17 18 4 53 6 26 13 2 15 8 7 12 11 5 Robot Miss Streak 9 | 3 . 1 3 5 8 5 3 1 2 2 2 2 5 1 5 9 5 3 Penetration Max 1 | . . . 1 . . 1 . . . 1 1 . 1 . . 1 1 . Secondary Targets 19 | . . . 3 2 1 6 . . . . . . 3 1 1 1 1 . Max Gunslinging Chain 1 | . . . 1 1 1 1 . . . . . . 1 1 1 1 1 . Shots Hit Robots 1090 | 15 1 17 120 100 126 76 23 118 23 102 27 6 79 19 46 74 104 14 Core Hits 557 | 5 2 12 65 53 98 71 15 30 5 13 14 2 41 18 13 30 59 11 Critical Kills 17 | . . . 2 . . . . 1 . . . . 5 . 2 4 3 . Critical Parts Destroyed 37 | . . . 1 . 1 . 1 5 . . 2 . 4 3 6 9 5 . Critical Strikes 86 | . . . 3 . 1 . 2 7 2 9 5 1 14 3 8 16 12 3 Destroy 51 | . . . 3 . 1 . . . . . 2 . 10 3 8 16 8 . Blast 22 | . . . . . . . 1 1 2 8 3 1 2 . . . 1 3 Smash 8 | . . . . . . . 1 6 . 1 . . . . . . . . Sever 5 | . . . . . . . . . . . . . 2 . . . 3 . Melee Attacks 205 | . . 28 10 11 . 11 5 61 . 8 . . 12 4 1 29 25 . Impact 132 | . . 28 10 11 . 11 5 61 . 6 . . . . . . . . Slashing 73 | . . . . . . . . . . 2 . . 12 4 1 29 25 . Piercing . | . . . . . . . . . . . . . . . . . . . Sneak Attacks 14 | . . . . . . . 1 1 . 1 . . 8 . . . 3 . Combat Hostiles 1 | . . . . . . . . 1 . . . . . . . . . . Follow-up Attacks . | . . . . . . . . . . . . . . . . . . . Damage Inflicted 36465 | 149 221 795 3666 2494 3106 1473 1256 3346 953 2958 1187 379 3872 1074 1158 2764 4946 668 Guns 13617 | 149 . 79 2250 1305 1869 1302 . . . 8 222 77 1665 454 1119 1878 1240 . Cannons 10325 | . . . 111 . . . 479 1522 953 2652 965 302 1427 . . . 1246 668 Explosions 7602 | . 221 679 1236 1097 1237 51 599 . . . . . 79 620 39 . 1744 . Melee 4909 | . . 37 61 92 . 120 178 1824 . 298 . . 701 . . 886 712 . Ramming 12 | . . . 8 . . . . . . . . . . . . . 4 . Kinetic 23242 | 149 . 79 2250 1305 1869 1302 479 1522 953 2660 1187 379 3052 454 1119 1878 1937 668 Thermal 1842 | . . . 814 59 301 . . . . . . . 119 . . . 549 . Explosive 4377 | . 221 679 191 . 284 . 599 . . . . . . 620 39 . 1744 . Electromagnetic 2083 | . . . 342 1038 652 51 . . . . . . . . . . . . Impact 2477 | . . 37 61 92 . 120 178 1824 . 165 . . . . . . . . Slashing 2432 | . . . . . . . . . . 133 . . 701 . . 886 712 . Piercing . | . . . . . . . . . . . . . . . . . . . Highest Corruption 41 | . 2 2 1 3 . . . 19 5 10 10 10 10 30 9 9 40 41 Average Corruption 8 | . 1 2 1 2 . . . 7 5 8 10 10 10 10 7 9 19 40 Corruption Purged . | . . . . . . . . . . . . . . . . . . . Corruption Blocked . | . . . . . . . . . . . . . . . . . . . Effects 372 | . 3 21 1 22 . . . 40 2 57 27 5 51 23 9 31 68 12 Message Errors 88 | . 2 5 . 5 . . . 12 . 11 8 1 13 5 4 6 15 1 Matter Fused 86 | . . 6 . 7 . . . 11 1 14 8 . 13 4 2 11 8 1 Heat Flow Errors 40 | . 1 2 . 3 . . . 3 . 10 1 1 8 3 . 3 4 1 Energy Discharges 35 | . . 2 1 2 . . . 4 . 5 3 1 4 1 1 3 7 1 Parts Rejected 12 | . . . . . . . . 1 . 1 . 1 1 . 1 . 7 . Parts Fused 5 | . . . . 1 . . . 1 1 . . . . 2 . . . . Data Loss (minor) 38 | . . 3 . 1 . . . . . 7 4 . 6 4 . 5 6 2 Data Loss (major) 26 | . . 3 . 1 . . . 3 . 2 1 1 4 3 . 2 6 . Misfires 17 | . . . . 2 . . . 5 . 3 1 . . 1 1 1 2 1 Alerts 6 | . . . . . . . . . . 2 . . 1 . . . 2 1 Misdirections 3 | . . . . . . . . . . . . . . . . . 3 . Weapon Failures 16 | . . . . . . . . . . 2 1 . 1 . . . 8 4 Overload Shots . | . . . . . . . . . . . . . . . . . . . Overflow Damage 1856 | . 25 . 64 5 17 64 233 652 37 324 54 11 188 13 . 3 144 22 Projectiles 820 | . . . . . . . 150 53 37 270 54 11 148 . . . 75 22 Explosions 169 | . 25 . 50 5 17 . . . . . . . 4 13 . . 55 . Melee 867 | . . . 14 . . 64 83 599 . 54 . . 36 . . 3 14 . Knockbacks 43 | . . . . . . 1 3 14 . 12 1 1 3 . . . 5 3 Impact 7 | . . . . . . 1 1 5 . . . . . . . . . . Kinetic 32 | . . . . . . . 2 7 . 11 1 1 3 . . . 5 2 Secondary 4 | . . . . . . . . 2 . 1 . . . . . . . 1 Self-Inflicted Damage 693 | . 11 58 30 123 . 24 138 . . . . . . 33 . . 276 . Shots 28 | . 1 3 4 9 . 1 3 . . . . . . 1 . . 6 . Rammed 4 | . . . 3 . . . . . . . . . . . . . 1 . Targets Rammed 6 | . . . 3 . . . . . . . . . . . . . 3 . Kicked . | . . . . . . . . . . . . . . . . . . . Crushed 2 | . . . . . . . . . . . . . . . . . 2 . Highest Temperature 444 | . 142 132 197 239 248 191 62 277 76 444 68 345 414 219 . 133 248 216 Average Temperature 72 | . 76 71 26 35 55 64 25 65 21 116 45 181 113 92 . 33 94 124 Received Heat Transfer 4531 | . . 57 729 561 453 392 116 210 27 572 9 36 442 193 72 402 80 180 Effects 6 | . . . . . 1 . . . . 3 . . 1 . . . . 1 Shutdowns 1 | . . . . . . . . . . . . . 1 . . . . . Energy Bleed 3 | . . . . . 1 . . . . 1 . . . . . . . 1 Matter Decay 1 | . . . . . . . . . . 1 . . . . . . . . Damage (minor) 1 | . . . . . . . . . . 1 . . . . . . . . Siege Activations 4 | . . . . . . . . . . . . . . . . 1 2 1 Total Turns 83 | . . . . . . . . . . . . . . . . 28 49 6 Longest Duration 35 | . . . . . . . . . . . . . . . . 28 35 6 Martial Activations . | . . . . . . . . . . . . . . . . . . . Shielding Activations . | . . . . . . . . . . . . . . . . . . . Robots Disrupted . | . . . . . . . . . . . . . . . . . . . Combat Hostiles . | . . . . . . . . . . . . . . . . . . . Robots Corrupted 15 | . . . 1 2 1 2 2 7 . . . . . . . . . . Combat Hostiles 10 | . . . 1 2 1 2 1 3 . . . . . . . . . . Parts Fried 23 | . . . 4 5 1 4 3 6 . . . . . . . . . . Impact Corruptions 23 | . . . 1 . . 2 4 16 . . . . . . . . . . Robots Melted . | . . . . . . . . . . . . . . . . . . . Combat Hostiles . | . . . . . . . . . . . . . . . . . . . Parts Melted 1 | . . . . . 1 . . . . . . . . . . . . . Heat Transferred 1344 | . . . 548 50 400 . . . . . . . 50 . . . 296 . Parts Sabotaged . | . . . . . . . . . . . . . . . . . . . Parts Stolen . | . . . . . . . . . . . . . . . . . . . Parts Stripped . | . . . . . . . . . . . . . . . . . . . Power Chain Reactions 8 | . . . . 2 5 . . . . . . . 1 . . . . . Alert | -11 -10 -10 -8 -8 -7 -7 -7 -7 -6 -6 -6 -6 -6 -6 -5 -5 -5 -5 ------- Run | Yrd Mat Sub Mat Gar Fac Gar Fac Gar Fac Ext Cet Arc Hub Gar Fac Gar Fac Gar Maximum Alert Level 4 | . . . 1 4 3 3 1 4 3 4 3 2 3 3 2 4 3 2 Low Security (%) 17 | 100 100 . 70 . . . 87 12 . . . . 10 . . . . . Level 1 15 | . . . 29 5 44 30 12 16 . 12 . 45 19 . 23 14 . . Level 2 37 | . . . . 36 53 37 . 26 43 30 27 54 64 68 76 18 83 100 Level 3 17 | . . . . 21 1 31 . 17 56 6 72 . 4 31 . 52 16 . Level 4 12 | . . . . 36 . . . 26 . 50 . . . . . 14 . . Level 5 . | . . . . . . . . . . . . . . . . . . . High Security . | . . . . . . . . . . . . . . . . . . . Max Security . | . . . . . . . . . . . . . . . . . . . Peak Influence 1417 | 5 81 . 374 1345 705 752 394 1376 775 1417 812 430 708 829 536 1204 741 684 Initial 779 | . . . . 242 705 277 394 36 722 367 779 285 140 480 434 337 632 487 Average 575 | 2 12 . 113 866 461 551 129 704 707 935 725 383 460 626 444 804 598 562 Influence Increases 13262 | 15 96 . 974 1183 844 695 439 1570 293 2316 325 225 1240 369 374 947 1104 253 Destroy 0b10 Robot/C 6400 | . 60 . 560 600 560 460 220 540 160 1100 160 80 500 200 60 440 500 200 Destroy 0b10 Robot/NC 385 | 15 . . 40 5 20 . 5 40 20 35 10 . 65 . 25 15 90 . Destroy Leader 896 | . 10 . 134 30 132 20 60 50 34 72 . . 146 20 24 40 104 20 Allied During Kill 1992 | . . . . 21 21 35 20 162 37 945 149 80 349 . . 109 59 5 Trap Triggered on 0b10 60 | . . . . 10 . . . 50 . . . . . . . . . . Successful Hack 259 | . 15 . 46 14 42 . 26 . . 43 . . 14 . . 21 38 . Disable Machine 690 | . . . 90 60 30 . 45 75 30 30 . 60 90 . 90 30 60 . Anti-Garrison Action 1250 | . . . . 350 . 100 . 500 . . . . . 100 . 200 . . Destroy Structure 955 | . 11 . 74 48 24 35 63 108 12 46 6 5 76 49 130 62 178 28 Partial Spotted 45 | . . . 30 . . . . . . . . . . . . 15 . . Lose Combat Pursuer 330 | . . . . 45 15 45 . 45 . 45 . . . . 45 15 75 . Influence Decreases 12612 | 15 96 . 601 211 1792 340 1139 246 918 1675 1003 539 954 226 721 225 1612 299 Entered New Map 5132 | . . . . 131 640 120 358 16 654 384 613 429 260 206 395 145 572 209 Time Decay 3823 | 15 96 . 439 . 422 . 416 . 254 571 270 50 514 . 286 . 490 . Lost Part 802 | . . . 12 60 60 40 10 60 10 150 10 . 40 20 20 20 220 70 Lost Ally 1680 | . . . . 20 70 180 80 170 . 570 110 60 140 . 20 60 180 20 Purge Threat 1175 | . . . 150 . 600 . 275 . . . . . . . . . 150 . Squads Dispatched 51 | . 1 . 5 . 9 . 7 . 5 7 . . 7 . 3 . 7 . Investigation 5 | . 1 . 1 . 1 . 1 . . . . . . . . . 1 . Extermination 12 | . . . . . 2 . 2 . 1 . . . 3 . 1 . 3 . Reinforcement 19 | . . . 3 . 2 . 4 . . 3 . . 3 . 2 . 2 . Assault 7 | . . . . . . . . . 1 4 . . 1 . . . 1 . Garrison 8 | . . . 1 . 4 . . . 3 . . . . . . . . . Intercept . | . . . . . . . . . . . . . . . . . . . Searches Triggered . | . . . . . . . . . . . . . . . . . . . Construction Impeded 5 | . . . 1 . . . 1 . . 1 . . 1 . 1 . . . Haulers Reinforced 2 | . . . . . . . . . . . . . . . 1 . 1 . Active Scanning Responses . | . . . . . . . . . . . . . . . . . . . Cargo Convoy Interrupts 1 | . . . . . . . . . . . . . . . . . 1 . Stealth | -11 -10 -10 -8 -8 -7 -7 -7 -7 -6 -6 -6 -6 -6 -6 -5 -5 -5 -5 --------- Run | Yrd Mat Sub Mat Gar Fac Gar Fac Gar Fac Ext Cet Arc Hub Gar Fac Gar Fac Gar Distress Signals 11 | . . . 3 . . . 1 . . 2 2 . 3 . . . . . Communications Jammed . | . . . . . . . . . . . . . . . . . . . Distress Signals . | . . . . . . . . . . . . . . . . . . . Times Spotted 474 | . 5 7 50 38 40 25 22 37 13 61 10 9 33 10 15 25 53 21 Peak Tracking Total 16 | . 3 2 6 4 6 5 5 5 5 11 5 2 5 4 6 8 16 10 Tactical Retreats 24 | . . . 6 3 1 2 . 2 . 3 . . . . 2 1 4 . ECM-based Alert Blocks 12 | . . . 11 1 . . . . . . . . . . . . . . Traps | -11 -10 -10 -8 -8 -7 -7 -7 -7 -6 -6 -6 -6 -6 -6 -5 -5 -5 -5 ------- Run | Yrd Mat Sub Mat Gar Fac Gar Fac Gar Fac Ext Cet Arc Hub Gar Fac Gar Fac Gar Traps Triggered 33 | . 2 . . 5 . 3 . 5 . 5 . . 3 5 . 3 1 1 Indirectly 3 | . . . . 3 . . . . . . . . . . . . . . Trap Hack Attempts . | . . . . . . . . . . . . . . . . . . . Triggered . | . . . . . . . . . . . . . . . . . . . Disarmed 4 | . 4 . . . . . . . . . . . . . . . . . Reprogrammed . | . . . . . . . . . . . . . . . . . . . Reused 6 | . . . . 1 . . . 5 . . . . . . . . . . Traps Extracted . | . . . . . . . . . . . . . . . . . . . Installed 21 | . . . . 7 . . . 14 . . . . . . . . . . Triggered 6 | . . . . 1 . . . 5 . . . . . . . . . . Most Traps Carried 5 | . . 1 1 4 . . . 5 . . . . . . . . . . Machines | -11 -10 -10 -8 -8 -7 -7 -7 -7 -6 -6 -6 -6 -6 -6 -5 -5 -5 -5 ---------- Run | Yrd Mat Sub Mat Gar Fac Gar Fac Gar Fac Ext Cet Arc Hub Gar Fac Gar Fac Gar Machines Disabled 62 | . . 1 6 7 2 2 3 10 2 2 . 4 6 2 6 5 4 . Max in Single Turn 3 | . . 1 3 2 2 1 3 1 1 1 . 1 1 1 2 1 1 . Garrison Relay 14 | . . . . 3 . 2 . 4 . . . . . 2 . 3 . . Machines Repaired . | . . . . . . . . . . . . . . . . . . . Machines Dismantled . | . . . . . . . . . . . . . . . . . . . Machines Sabotaged . | . . . . . . . . . . . . . . . . . . . Overloaded Fab Kills . | . . . . . . . . . . . . . . . . . . . Hacking | -11 -10 -10 -8 -8 -7 -7 -7 -7 -6 -6 -6 -6 -6 -6 -5 -5 -5 -5 --------- Run | Yrd Mat Sub Mat Gar Fac Gar Fac Gar Fac Ext Cet Arc Hub Gar Fac Gar Fac Gar Machines Accessed 66 | . 5 1 6 2 9 2 8 4 3 8 . . 4 . 2 3 8 1 Terminals 46 | . 5 . 5 2 6 2 3 4 2 8 . . 3 . . 3 2 1 Fabricators 4 | . . . . . . . 2 . 1 . . . . . . . 1 . Repair Stations 4 | . . . . . . . 1 . . . . . . . 1 . 2 . Recycling Units 1 | . . . . . . . . . . . . . . . . . 1 . Scanalyzers 4 | . . . . . 2 . 1 . . . . . . . . . 1 . Garrison Access 6 | . . . 1 . 1 . 1 . . . . . 1 . 1 . 1 . Total Hacks 147 | . 17 1 20 4 24 4 18 7 6 12 . . 7 . 5 4 17 1 Successful 77 | . 8 1 12 2 13 2 10 1 3 7 . . 3 . 4 2 9 . Failed 69 | . 9 . 8 2 10 2 8 6 3 5 . . 4 . 1 2 8 1 Catastrophic 14 | . 1 . . . 1 1 3 1 . . . . 1 . . 1 4 1 Database Lockouts 1 | . . . . . 1 . . . . . . . . . . . . . Manual 32 | . 8 . 12 . 1 . 4 . . 1 1 . 4 . . . 1 . Terminals 107 | . 17 . 18 4 16 4 8 7 4 12 . . 6 . . 4 6 1 Fabricators 10 | . . . . . . . 5 . 2 . . . . . . . 3 . Repair Stations 9 | . . . . . . . 2 . . . . . . . 4 . 3 . Recycling Units 2 | . . . . . . . . . . . . . . . . . 2 . Scanalyzers 11 | . . . . . 7 . 2 . . . . . . . . . 2 . Garrison Access 7 | . . . 2 . 1 . 1 . . . . . 1 . 1 . 1 . Terminal Hacks 41 | . 6 1 6 2 6 2 2 1 2 6 . . 2 . . 2 3 . Robot Analysis 1 | . . . . . . . 1 . . . . . . . . . . . Prototype ID Bank 2 | . 2 . . . . . . . . . . . . . . . . . Open Door 10 | . . . . 1 . 1 . 1 . 6 . . . . . 1 . . Open DSF 1 | . . . . . . . 1 . . . . . . . . . . . Level Access Points 1 | . . . . . 1 . . . . . . . . . . . . . Branch Access Points 1 | . . . 1 . . . . . . . . . . . . . . . Emergency Access Points 3 | . . . . 1 1 . . . . . . . . . . 1 . . Terminal Index 1 | . . . . . 1 . . . . . . . . . . . . . Unreport Threat 3 | . . . 1 . 1 . . . . . . . . . . . 1 . Locate Traps 6 | . 1 . 1 . 2 . . . 1 . . . 1 . . . . . Disarm Traps 1 | . 1 . . . . . . . . . . . . . . . . . Surveillance Status 1 | . . . . . . . . . . . . . . . . . 1 . Hauler Manifests 2 | . 1 . 1 . . . . . . . . . . . . . . . Registered Components 2 | . 1 . 1 . . . . . . . . . . . . . . . Zone Layout 4 | . . . 1 . . . . . 1 . . . 1 . . . 1 . Garrison Registry 1 | . . . . . . 1 . . . . . . . . . . . . Proto ID Catalog 1 | . . 1 . . . . . . . . . . . . . . . . Fabricator Hacks 3 | . . . . . . . 2 . 1 . . . . . . . . . Network Status 1 | . . . . . . . 1 . . . . . . . . . . . Build 2 | . . . . . . . 1 . 1 . . . . . . . . . Repair Station Hacks 6 | . . . . . . . 2 . . . . . . . 3 . 1 . Scan Component 4 | . . . . . . . 1 . . . . . . . 2 . 1 . Repair 2 | . . . . . . . 1 . . . . . . . 1 . . . Recycling Unit Hacks 1 | . . . . . . . . . . . . . . . . . 1 . Retrieve Components 1 | . . . . . . . . . . . . . . . . . 1 . Scanalyzer 9 | . . . . . 5 . 2 . . . . . . . . . 2 . Retrieve Study 9 | . . . . . 5 . 2 . . . . . . . . . 2 . Garrison Access Hacks 6 | . . . 1 . 1 . 1 . . . . . 1 . 1 . 1 . Unlock Access 6 | . . . 1 . 1 . 1 . . . . . 1 . 1 . 1 . Unauthorized Hacks 11 | . 2 . 5 . 1 . 1 . . 1 . . . . . . 1 . Terminals 9 | . 2 . 5 . 1 . . . . 1 . . . . . . . . Track 2 | . . . 1 . 1 . . . . . . . . . . . . . Assimilate 1 | . . . 1 . . . . . . . . . . . . . . . Botnet 5 | . 2 . 2 . . . . . . 1 . . . . . . . . Operators 1 | . . . 1 . . . . . . . . . . . . . . . Fabricators 2 | . . . . . . . 1 . . . . . . . . . 1 . Haulers 2 | . . . . . . . 1 . . . . . . . . . 1 . Repair Stations . | . . . . . . . . . . . . . . . . . . . Recycling Units . | . . . . . . . . . . . . . . . . . . . Scanalyzers . | . . . . . . . . . . . . . . . . . . . Garrison Access . | . . . . . . . . . . . . . . . . . . . Data Cores Recovered . | . . . . . . . . . . . . . . . . . . . Used . | . . . . . . . . . . . . . . . . . . . Hacking Detections 52 | . 5 . 5 1 8 2 5 3 2 5 . . 3 . 1 3 8 1 Full Trace Events 6 | . 1 . 1 . 1 . 1 . . . . . . . . 1 1 . Feedback Events 1 | . . . . . 1 . . . . . . . . . . . . . Hackware Fried 1 | . . . . . 1 . . . . . . . . . . . . . Feedback Blocked . | . . . . . . . . . . . . . . . . . . . Robot Schematics Acquired . | . . . . . . . . . . . . . . . . . . . Robots Built . | . . . . . . . . . . . . . . . . . . . Authchips . | . . . . . . . . . . . . . . . . . . . Time . | . . . . . . . . . . . . . . . . . . . Total Robot Build Rating . | . . . . . . . . . . . . . . . . . . . Part Schematics Acquired . | . . . . . . . . . . . . . . . . . . . Parts Built 4 | . . . . . . . 2 . 2 . . . . . . . . . Authchips . | . . . . . . . . . . . . . . . . . . . Time 190 | . . . . . . . 84 . 106 . . . . . . . . . Total Part Build Rating 20 | . . . . . . . 8 . 12 . . . . . . . . . Part Studies Acquired 8 | . . . . . 5 . 1 . . . . . . . . . 2 . Parts Repaired 1 | . . . . . . . . . . . . . . . 1 . . . Time 152 | . . . . . . . 44 . . . . . . . 108 . . . Parts Recycled . | . . . . . . . . . . . . . . . . . . . Recycled Matter . | . . . . . . . . . . . . . . . . . . . Retrieved Matter . | . . . . . . . . . . . . . . . . . . . Retrieved Components 10 | . . . . . . . . . . . . . . . . . 10 . Parts Scanalyzed . | . . . . . . . . . . . . . . . . . . . Part Schematics Acquired . | . . . . . . . . . . . . . . . . . . . Parts Damaged . | . . . . . . . . . . . . . . . . . . . Bothacking | -11 -10 -10 -8 -8 -7 -7 -7 -7 -6 -6 -6 -6 -6 -6 -5 -5 -5 -5 ------------ Run | Yrd Mat Sub Mat Gar Fac Gar Fac Gar Fac Ext Cet Arc Hub Gar Fac Gar Fac Gar Used RIF Installer 5 | . . . . 1 . 1 . 1 . . . . . 1 . 1 . . Command Fork 1 | . . . . . . 1 . . . . . . . . . . . . Watcher Feeds 1 | . . . . . . . . . . . . . . 1 . . . . Patrol Navigation 1 | . . . . . . . . 1 . . . . . . . . . . Autoassimilate 1 | . . . . . . . . . . . . . . . . 1 . . Robots Hacked 58 | . . . . 3 9 1 5 6 4 6 2 . 2 . 6 3 11 . Non-combat 12 | . . . . . 3 . 2 1 2 2 . . . . . . 2 . Combat 46 | . . . . 3 6 1 3 5 2 4 2 . 2 . 6 3 9 . Autoassimilated 5 | . . . . . . . . . . . . . . . . 1 4 . Robot Hacks Applied 65 | . . . . 4 17 1 7 6 4 6 2 . 2 . 7 2 7 . parse_system 4 | . . . . . . . . . . . 2 . . . . 2 . . drop_inventory 2 | . . . . . 1 . . . . 1 . . . . . . . . locate_stockpiles 1 | . . . . . 1 . . . . . . . . . . . . . purge_threat 6 | . . . . . 4 . 2 . . . . . . . . . . . map_route 1 | . . . . . . . . . 1 . . . . . . . . . find_shortcuts 1 | . . . . . 1 . . . . . . . . . . . . . find_garrison 2 | . . . . . . . . . . . . . 1 . 1 . . . scatter_targeting 3 | . . . . . . . 1 . . . . . 1 . 1 . . . overload_power 1 | . . . . . . . . 1 . . . . . . . . . . amplify_resonance 5 | . . . . . 1 . . . . . . . . . 2 . 2 . wipe_record 1 | . . . . . 1 . . . . . . . . . . . . . go_dormant 1 | . . . . 1 . . . . . . . . . . . . . . overwrite_iff 8 | . . . . 1 4 . . . . 2 . . . . . . 1 . streamctrl_high 1 | . . . . . . . . . . . . . . . . . 1 . formatsys_low 6 | . . . . . 3 . 2 . . 1 . . . . . . . . formatsys_high 22 | . . . . 2 1 1 2 5 3 2 . . . . 3 . 3 . Relay Couplers Released 66 | . . . . 18 . 9 . 14 . . . . . 7 4 14 . . Machine Destruction 58 | . . . . 14 . 9 . 14 . . . . . 7 . 14 . . Programmers 8 | . . . . 4 . . . . . . . . . . 4 . . . Attached 30 | . . . . 2 5 1 3 5 3 1 . . . . 5 2 3 . Fabnet Peak Effective % . | . . . . . . . . . . . . . . . . . . . Robots Rewired 44 | . . . . 2 . 11 . 5 . 26 . . . . . . . . Allies Hacked 2 | . . . . . . . . . 1 . . . . . . 1 . . Hacks Repelled . | . . . . . . . . . . . . . . . . . . . Allies | -11 -10 -10 -8 -8 -7 -7 -7 -7 -6 -6 -6 -6 -6 -6 -5 -5 -5 -5 -------- Run | Yrd Mat Sub Mat Gar Fac Gar Fac Gar Fac Ext Cet Arc Hub Gar Fac Gar Fac Gar Total Allies 109 | . . . . 4 8 12 4 11 3 44 5 . . . 3 5 10 . Largest Group 18 | . . . . 3 3 6 4 10 4 18 12 11 7 . 2 4 4 1 Highest-Rated Group 801 | . . . . 60 36 120 74 254 152 551 801 765 521 . 58 200 218 49 Highest-Rated Ally 159 | . . . . 25 16 40 26 40 42 159 151 151 96 . 29 80 115 49 Total Orders 10 | . . . . 2 . . 2 4 . 2 . . . . . . . . STAY 5 | . . . . 1 . . 1 2 . 1 . . . . . . . . FOLLOW 5 | . . . . 1 . . 1 2 . 1 . . . . . . . . Ally Attacks 810 | . . . . 13 21 41 36 82 33 373 64 23 43 . 1 44 34 2 Total Damage 18039 | . . . . 217 189 675 397 1605 1151 7173 1347 729 1469 . . 1656 1312 119 Kills 122 | . . . . 3 1 6 . 12 8 59 5 3 10 . . 8 6 1 Allies Corrupted 3 | . . . . . . . . . . 2 . . . . . . 1 . Allies Melted 1 | . . . . . . . . . . 1 . . . . . . . . Intel | -11 -10 -10 -8 -8 -7 -7 -7 -7 -6 -6 -6 -6 -6 -6 -5 -5 -5 -5 ------- Run | Yrd Mat Sub Mat Gar Fac Gar Fac Gar Fac Ext Cet Arc Hub Gar Fac Gar Fac Gar Active Infowar (turns) 11858 | 23 576 607 1226 792 26 960 1001 2147 489 . . . 886 709 634 908 874 . Optics 8608 | . . . . . . 960 1001 2147 489 . . . 886 709 634 908 874 . Seismic 1206 | 23 576 607 . . . . . . . . . . . . . . . . Machine Analysis 446 | . . . . . . . . . . . . . . . . . 446 . ECM 2044 | . . . 1226 792 26 . . . . . . . . . . . . . Robot Analysis Total 1 | . . . . . . . 1 . . . . . . . . . . . Derelict Logs Recovered 1 | . . 1 . . . . . . . . . . . . . . . . Drone Launches . | . . . . . . . . . . . . . . . . . . . Drone Recoveries . | . . . . . . . . . . . . . . . . . . . Exploration | -11 -10 -10 -8 -8 -7 -7 -7 -7 -6 -6 -6 -6 -6 -6 -5 -5 -5 -5 ------------- Run | Yrd Mat Sub Mat Gar Fac Gar Fac Gar Fac Ext Cet Arc Hub Gar Fac Gar Fac Gar Turns Passed 18724 | 120 576 1314 1374 1885 1025 1195 1001 2147 554 1737 595 105 1402 709 634 908 1290 153 Spaces Moved 9856 | 45 346 726 603 1018 602 678 708 1524 358 755 164 40 485 300 280 490 667 67 Core 8 | 2 . . . . . . . . . . . . . . . . . 6 Treads 3783 | 43 346 726 553 1018 44 . . . . 284 . . 191 41 280 161 96 . Legs . | . . . . . . . . . . . . . . . . . . . Wheels 6065 | . . . 50 . 558 678 708 1524 358 471 164 40 294 259 . 329 571 61 Hover . | . . . . . . . . . . . . . . . . . . . Flight . | . . . . . . . . . . . . . . . . . . . Fastest Speed 50 | 50 160 160 145 153 105 120 105 100 100 100 140 200 185 160 160 120 120 50 Average Speed 144 | 155 160 160 159 153 115 131 118 105 120 175 191 200 215 199 162 133 127 150 Slowest Speed 400 | 160 160 160 245 153 153 155 140 125 135 400 200 200 240 215 240 160 215 160 Overloaded Moves . | . . . . . . . . . . . . . . . . . . . Propulsion Burnouts . | . . . . . . . . . . . . . . . . . . . Robots Hopped . | . . . . . . . . . . . . . . . . . . . Potential Cave-ins . | . . . . . . . . . . . . . . . . . . . Cave-ins Triggered 1 | . . . 1 . . . . . . . . . . . . . . . Exploration Rate (%) 47 | 4 70 49 53 92 21 55 26 90 11 77 57 65 54 39 11 69 22 33 Regions Visited 18 Branch Regions 5 Pre-discovered Areas . | . . . . . . . . . . . . . . . . . . . Known Exits Taken 6 | . . . 1 . 1 . 1 . . . . . 1 . 1 . 1 . Unknown Exits Taken 7 | 1 1 1 . . . . . . 1 1 1 1 . . . . . . Scrap Searched 6 | . . 6 . . . . . . . . . . . . . . . . Spaces Dug 112 | . 8 7 67 . . . 1 2 . . . . 3 3 1 . 20 . Terrain Destroyed 541 | . 21 61 79 3 22 . 65 9 10 14 4 4 54 49 68 3 66 9 Melee 25 | . . 7 4 . . . 1 2 . . . . 3 1 1 . 6 . Projectile 151 | . . . 3 . . . 5 7 10 14 4 4 47 1 18 3 26 9 AOE 365 | . 21 54 72 3 22 . 59 . . . . . 4 47 49 . 34 . Terrain Rammed . | . . . . . . . . . . . . . . . . . . . Walls Destroyed . | . . . . . . . . . . . . . . . . . . . Machines Disabled . | . . . . . . . . . . . . . . . . . . . Actions | -11 -10 -10 -8 -8 -7 -7 -7 -7 -6 -6 -6 -6 -6 -6 -5 -5 -5 -5 --------- Run | Yrd Mat Sub Mat Gar Fac Gar Fac Gar Fac Ext Cet Arc Hub Gar Fac Gar Fac Gar Total 12775 | 70 368 814 837 1221 809 882 829 1864 439 1038 408 50 707 373 406 634 939 87 Wait 789 | . 6 6 37 4 33 62 40 36 32 61 181 3 125 7 58 24 74 . Move 9843 | 44 345 725 603 1017 602 677 708 1523 357 754 163 39 485 298 280 489 667 67 Hop . | . . . . . . . . . . . . . . . . . . . Pick Up 212 | 7 7 15 18 22 13 15 7 32 6 14 13 . 6 5 7 7 16 2 Fast Attach 93 | 7 . . 9 3 10 3 5 5 2 15 5 1 5 2 3 5 11 2 Attach 99 | . . 1 4 6 9 7 5 13 2 10 1 . 4 4 6 2 24 1 Detach 12 | . . . 2 . 1 . 4 2 . . . . . . . 1 2 . Swap 236 | . 4 14 29 24 25 22 12 21 6 13 6 1 13 7 13 9 17 . Drop 227 | . 4 14 29 24 19 18 11 35 2 12 20 . 5 5 8 10 11 . Fire 915 | 12 2 11 93 102 97 59 32 98 32 117 19 6 52 15 30 34 89 15 Melee 205 | . . 28 10 11 . 11 5 61 . 8 . . 12 4 1 29 25 . Ram . | . . . . . . . . . . . . . . . . . . . Kick . | . . . . . . . . . . . . . . . . . . . Crush 6 | . . . 3 . . . . . . . . . . . . . 3 . Escape Stasis 117 | . . . . 1 . 8 . 24 . 34 . . . 26 . 24 . . Rewire . | . . . . . . . . . . . . . . . . . . . Trap 21 | . . . . 7 . . . 14 . . . . . . . . . . Miscellaneous . | . . . . . . . . . . . . . . . . . . . Route ------- -11/Scrapyard -10/Materials (discovered 4 exits: [*Mat x2] / [*Min] / *Sub) -10/Subcaves -8/Materials (discovered 4 exits: *Fac x3 / Gar) -8/Garrison (discovered 3 exits: *Fac x3) -7/Factory (discovered 6 exits: Fac x4 / [*Sto] / Gar) -7/Garrison (discovered 4 exits: *Fac x4) -7/Factory (discovered 4 exits: *Fac x2 / [*Low] / Gar) -7/Garrison (discovered 3 exits: *Fac x3) -6/Factory -6/Extension (discovered 2 exits: *Fac / *Cet) -6/Cetus (discovered 2 exits: *Fac / [*Arc]) -6/Archives -6/Hub_04(d) (discovered 2 exits: *Fac / Gar) -6/Garrison -5/Factory (discovered 2 exits: [*Upp] / Gar) -5/Garrison (discovered 2 exits: *Fac x2) -5/Factory -5/Garrison History --------- Turn | Location | Event 36 | -11/Scrapyard | Discovered new exit (range 15) 121 | -11/Scrapyard | Entered Materials 224 | -10/Materials | Discovered new exit (range 15) 303 | -10/Materials | Build established: Mutant 362 | -10/Materials | Discovered new exit (range 3) 598 | -10/Materials | Discovered new exit (range 3) 687 | -10/Materials | Discovered new exit (range 7) 697 | -10/Materials | Entered Subcaves 1012 | -10/Subcaves | A swath of the cavern ceiling suddenly collapsed 1509 | -10/Subcaves | Disturbed a concealed Subdweller 1680 | -10/Subcaves | Learned 8 Materials zone layouts 1766 | -10/Subcaves | Discovered new exit (range 9) 1911 | -10/Subcaves | Visited 4L-MR0's lab 1943 | -10/Subcaves | Found Rainbow Chip 2011 | -10/Subcaves | Entered Materials 2011 | -8/Materials | Evolved 4 slots: Propulsion x1, Utility x3 2012 | -8/Materials | Identified exit to Factory 3001 | -8/Materials | Crushed by falling debris 3312 | -8/Materials | Garrison activated, responded to threat 3385 | -8/Materials | Identified exit to Garrison 3385 | -8/Materials | Entered Garrison 3645 | -8/Garrison | Triggered checkpoint 3687 | -8/Garrison | Triggered checkpoint 3729 | -8/Garrison | Garrison Relay disabled 3827 | -8/Garrison | Discovered exit to Factory (range 10) 3877 | -8/Garrison | Triggered checkpoint 3968 | -8/Garrison | Triggered checkpoint 4071 | -8/Garrison | Installed Relay Interface Framework 4082 | -8/Garrison | Discovered exit to Factory (range 12) 4174 | -8/Garrison | Garrison Relay disabled 4177 | -8/Garrison | Triggered checkpoint 4297 | -8/Garrison | Triggered checkpoint 4487 | -8/Garrison | Triggered checkpoint 4565 | -8/Garrison | Garrison Relay disabled 4878 | -8/Garrison | Build established: Bothacker-Mutant 4933 | -8/Garrison | Triggered checkpoint 5115 | -8/Garrison | Lost 3 parts (1n1u1w) 5250 | -8/Garrison | Discovered exit to Factory (range 14) 5270 | -8/Garrison | Entered Factory 5270 | -7/Factory | Evolved 2 slots: Utility x2 5595 | -7/Factory | Garrison activated, responded to threat 5634 | -7/Factory | Lost 3 allies 5856 | -7/Factory | Discovered new exit (range 9) 5906 | -7/Factory | Found Powered Armor 5945 | -7/Factory | Build established: Hacker-Mutant 6059 | -7/Factory | Adv. Hacking Suite fried by hacking feedback 6076 | -7/Factory | Identified exit to Factory 6148 | -7/Factory | Central database locked down 6211 | -7/Factory | Garrison activated, responded to threat 6295 | -7/Factory | Identified exit to Garrison 6295 | -7/Factory | Entered Garrison 6344 | -7/Garrison | Build established: Mutant 6345 | -7/Garrison | Triggered checkpoint 6403 | -7/Garrison | Discovered new exit (range 6) 6457 | -7/Garrison | Triggered checkpoint 6457 | -7/Garrison | Garrison Relay disabled 6529 | -7/Garrison | Lost 3 allies 6638 | -7/Garrison | Triggered checkpoint 6758 | -7/Garrison | Triggered checkpoint 6808 | -7/Garrison | Expanded RIF knowledge: Command Fork 6887 | -7/Garrison | Triggered checkpoint 6904 | -7/Garrison | Garrison Relay disabled 6995 | -7/Garrison | Triggered checkpoint 7072 | -7/Garrison | Lost 4 allies 7079 | -7/Garrison | Triggered checkpoint 7131 | -7/Garrison | Discovered new exit (range 82) 7131 | -7/Garrison | Discovered new exit (range 97) 7131 | -7/Garrison | Discovered new exit (range 26) 7131 | -7/Garrison | Discovered new exit (range 72) 7490 | -7/Garrison | Entered Factory 7490 | -7/Factory | Accompanied by 3 allies 7558 | -7/Factory | Build established: Bothacker-Mutant 7748 | -7/Factory | Fabricated Armor Integrity Analyzer? 7802 | -7/Factory | Discovered new exit (range 4) 8072 | -7/Factory | Discovered exit to Factory (range 5) 8087 | -7/Factory | P-60 Hacker assimilated allied Trooper 4e 8120 | -7/Factory | Lost 3 allies 8303 | -7/Factory | Core integrity fell below 50% 8474 | -7/Factory | Discovered exit to Factory (range 19) 8490 | -7/Factory | Identified exit to Garrison 8491 | -7/Factory | Entered Garrison 8491 | -7/Garrison | Accompanied by 1 ally 8551 | -7/Garrison | Triggered checkpoint 8613 | -7/Garrison | Triggered checkpoint 8617 | -7/Garrison | Garrison Relay disabled 8807 | -7/Garrison | Build established: Scavenger-Mutant 9071 | -7/Garrison | Triggered checkpoint 9083 | -7/Garrison | Triggered checkpoint 9227 | -7/Garrison | Triggered checkpoint 9444 | -7/Garrison | Build established: Commander-Mutant 9463 | -7/Garrison | Garrison Relay disabled 9633 | -7/Garrison | Garrison Relay disabled 9683 | -7/Garrison | Discovered exit to Factory (range 10) 9759 | -7/Garrison | Triggered checkpoint 9935 | -7/Garrison | Triggered checkpoint 10053 | -7/Garrison | Discovered exit to Factory (range 13) 10147 | -7/Garrison | System corruption reached 10% 10252 | -7/Garrison | Expanded RIF knowledge: Patrol Navigation 10273 | -7/Garrison | Triggered checkpoint 10287 | -7/Garrison | Lost 3 allies 10335 | -7/Garrison | Triggered checkpoint 10375 | -7/Garrison | Lost 3 allies 10377 | -7/Garrison | Lost 4 parts (2n2u) 10387 | -7/Garrison | Triggered checkpoint 10508 | -7/Garrison | Garrison Relay disabled 10548 | -7/Garrison | Discovered exit to Factory (range 10) 10551 | -7/Garrison | Build established: Bothacker-Mutant 10638 | -7/Garrison | Entered Factory 10638 | -6/Factory | Accompanied by 2 allies 10638 | -6/Factory | Evolved 2 slots: Utility x1, Weapon x1 10810 | -6/Factory | Garrison activated, responded to threat 10966 | -6/Factory | Discovered new exit (range 15) 10988 | -6/Factory | First assault squad dispatched 11072 | -6/Factory | Fabricated Hyp. Coil Gun? 11097 | -6/Factory | P-60 Hacker assimilated allied Slayer 5a 11104 | -6/Factory | Build established: Bothacker-Tank 11192 | -6/Factory | Entered Extension 11192 | -6/Extension | Accompanied by 4 allies 11334 | -6/Extension | Rescued a captive Derelict 11382 | -6/Extension | Rescued a captive Derelict 11383 | -6/Extension | Rescued a captive Derelict 11500 | -6/Extension | Rescued a captive Derelict 11501 | -6/Extension | Rescued a captive Derelict 11542 | -6/Extension | First assault squad dispatched 11552 | -6/Extension | Rescued a captive Derelict 11553 | -6/Extension | Rescued a captive Derelict 11608 | -6/Extension | Spotted B-75 Beast 11643 | -6/Extension | Spotted B-75 Beast 11653 | -6/Extension | Attached Rainbow Chip, gained temporary slots: Power, Propulsion, Utility, Weapon 11664 | -6/Extension | Allies destroyed B-75 Beast 11666 | -6/Extension | System corruption reached 10% 11678 | -6/Extension | Allies destroyed B-75 Beast 11696 | -6/Extension | Lost 7 parts (1p5u1w) 11740 | -6/Extension | Lost 13 allies 11966 | -6/Extension | Lost 3 allies 11982 | -6/Extension | Rescued a captive Derelict 11982 | -6/Extension | Rescued a captive Derelict 12034 | -6/Extension | Lost 6 allies 12090 | -6/Extension | Lost 4 parts (1p1n1u1w) 12274 | -6/Extension | Rescued a captive Derelict 12275 | -6/Extension | Rescued a captive Derelict 12563 | -6/Extension | Rescued A7 12595 | -6/Extension | Build established: Scavenger-Tank 12841 | -6/Extension | Discovered new exit (range 10) 12844 | -6/Extension | Discovered new exit (range 6) 12866 | -6/Extension | Found Powered Armor 12929 | -6/Extension | Entered Cetus 12929 | -6/Cetus | Accompanied by 12 allies (A7) 12934 | -6/Cetus | Acquired a Cetus Manufacturing Module code from A7 12949 | -6/Cetus | Spotted Cetus Guard 12950 | -6/Cetus | Spotted Cetus Guard 12952 | -6/Cetus | Spotted Cetus Guard 12953 | -6/Cetus | Spotted Cetus Guard 12954 | -6/Cetus | Destroyed Cetus Guard 12971 | -6/Cetus | Allies destroyed Cetus Guard 12986 | -6/Cetus | Allies destroyed Cetus Guard 12986 | -6/Cetus | Destroyed Cetus Guard 13005 | -6/Cetus | Lost 5 allies 13084 | -6/Cetus | Started Cetus Manufacturing Module 13109 | -6/Cetus | Manufactured an Enhanced Grunt 13134 | -6/Cetus | Manufactured an Enhanced Grunt 13159 | -6/Cetus | Manufactured an Enhanced Grunt 13184 | -6/Cetus | Manufactured an Enhanced Grunt 13209 | -6/Cetus | Manufactured an Enhanced Grunt 13301 | -6/Cetus | Discovered new exit (range 15) 13352 | -6/Cetus | Spotted Cetus Guard 13353 | -6/Cetus | Spotted Cetus Guard 13355 | -6/Cetus | Spotted Cetus Guard 13357 | -6/Cetus | Spotted Cetus Guard 13360 | -6/Cetus | Allies destroyed Cetus Guard 13369 | -6/Cetus | Allies destroyed Cetus Guard 13371 | -6/Cetus | Destroyed Cetus Guard 13374 | -6/Cetus | Destroyed Cetus Guard 13390 | -6/Cetus | Discovered new exit (range 15) 13400 | -6/Cetus | Met Revision 17 13524 | -6/Cetus | Entered Archives 13524 | -6/Archives | Accompanied by 11 allies (A7) 13565 | -6/Archives | Build established: Commander-Tank 13592 | -6/Archives | Discovered new exit (range 16) 13600 | -6/Archives | Lost 3 allies 13629 | -6/Archives | Entered Hub_04(d) 13629 | -6/Hub_04(d) | Accompanied by 7 allies 14375 | -6/Hub_04(d) | Build established: Scavenger-Tank 14464 | -6/Hub_04(d) | Discovered new exit (range 19) 14679 | -6/Hub_04(d) | First assault squad dispatched 14738 | -6/Hub_04(d) | Core integrity fell below 50% 14889 | -6/Hub_04(d) | Found Exp. Thermal Shield 15031 | -6/Hub_04(d) | Identified exit to Garrison 15031 | -6/Hub_04(d) | Entered Garrison 15081 | -6/Garrison | Triggered checkpoint 15129 | -6/Garrison | Garrison Relay disabled 15253 | -6/Garrison | Build established: Scavenger-Mutant 15431 | -6/Garrison | Triggered checkpoint 15560 | -6/Garrison | Discovered new exit (range 11) 15575 | -6/Garrison | Build established: Scavenger-Tank 15615 | -6/Garrison | Triggered checkpoint 15628 | -6/Garrison | Garrison Relay disabled 15644 | -6/Garrison | Expanded RIF knowledge: Watcher Feeds 15739 | -6/Garrison | System corruption reached 30% 15740 | -6/Garrison | Entered Factory 15740 | -5/Factory | Evolved 2 slots: Propulsion x1, Utility x1 16060 | -5/Factory | Repaired Centrium Heavy Treads 16300 | -5/Factory | Discovered new exit (range 18) 16374 | -5/Factory | Identified exit to Garrison 16374 | -5/Factory | Entered Garrison 16374 | -5/Garrison | Accompanied by 2 allies 16439 | -5/Garrison | Found embedded Infiltrators 16496 | -5/Garrison | Triggered checkpoint 16526 | -5/Garrison | Garrison Relay disabled 16644 | -5/Garrison | Spotted B-75 Beast 16646 | -5/Garrison | Triggered checkpoint 16648 | -5/Garrison | Triggered checkpoint 16687 | -5/Garrison | Triggered checkpoint 16689 | -5/Garrison | Destroyed B-75 Beast 16697 | -5/Garrison | Lost 3 allies 16897 | -5/Garrison | Discovered new exit (range 10) 16960 | -5/Garrison | Garrison Relay disabled 17088 | -5/Garrison | Garrison Relay disabled 17115 | -5/Garrison | Discovered new exit (range 19) 17167 | -5/Garrison | Rescued a captive Derelict 17169 | -5/Garrison | Rescued a captive Derelict 17197 | -5/Garrison | Expanded RIF knowledge: Autoassimilate 17198 | -5/Garrison | Triggered checkpoint 17250 | -5/Garrison | Build established: Botlord-Mutant 17282 | -5/Garrison | Entered Factory 17282 | -5/Factory | Accompanied by 3 allies 17658 | -5/Factory | System corruption reached 10% 17882 | -5/Factory | First assault squad dispatched 18150 | -5/Factory | Cargo convoy interrupted 18172 | -5/Factory | System corruption reached 30% 18205 | -5/Factory | Lost 3 allies 18207 | -5/Factory | Core integrity fell below 50% 18255 | -5/Factory | Destroyed 8 combat bots 18260 | -5/Factory | Lost 16 parts (1p2n9u4w) 18385 | -5/Factory | Found PL-3XN's Ring of Power 18417 | -5/Factory | Build established: Bothacker-Tank 18571 | -5/Factory | Identified exit to Garrison 18572 | -5/Factory | Entered Garrison 18572 | -5/Garrison | Accompanied by 1 ally 18640 | -5/Garrison | Triggered checkpoint 18694 | -5/Garrison | Core integrity fell below 20% 18722 | -5/Garrison | Released all parts (11) 18725 | -5/Garrison | Destroyed by S-27 Virus with Autogun Last Messages --------------- 18713_ Activated siege mode. 18716_ System corrupted: Com. Linear Accelerator jammed. 18716_ G-50 Soldier knocked back. 18717_ JSZX#FE5EUB1X1FPW3VSCDKU7K 18718_ Imp. Heavy Treads destroyed. 18719_ G-50 Soldier knocked back. 18721_ Exp. Biometal Medium Treads destroyed. 18722_ Overheating: Energy bleed (-114). 18722_ Released Imp. Kinecellerator. 18722_ Released Matter Compressor. 18722_ Released Hcp. Storage Unit. 18722_ Released Relay Coupler [Sentry]. 18722_ Released Relay Coupler [Grunt]. 18722_ Released Com. Linear Accelerator. 18722_ Released Exp. Power Amplifier. 18722_ Released Terrain Scan Processor. 18722_ Released Adv. Energy Well. 18722_ Released Com. Linear Accelerator. 18722_ Released Imp. Treads. 18724_ G-50 Soldier destroyed. Map ----- +----------------------------------------------------+ | ?????????????????????????????????????????????????? | | ?????????????????????????????????????????????????? | | ?????????????????????????????????????????????????? | | ?????????????????????????????????????????????????? | | ?????????????????????????????????????????????????? | | ?????????????????????????????????????????????????? | | ?????????????????????????????????????????????????? | | ?????????????????????????????????????????????????? | | ?????????????????????????????????????????????????? | | ?????????????????????????????????????????????????? | | ?????????????????????????????????????????????????? | | ?????????????????????????????????????????????????? | | ?????????????????????????????????????????????????? | | ?????????????????????????????????????????????????? | | ????????????????????????####?????????????????????? | | ???????????????????????? #?????????????????????? | | ???????????????????????? #?????????????????????? | | ????????????????????????# #?????????????????????? | | ????????????????????????# #?????????????????????? | | ????????????????????????# #?????????????????????? | | ???????????????????????## #?????????????????????? | | ???????????????????????#; #??####???????????????? | | ???????????????????????#; #? % #?? #???????????? | | ????????????# #T######;;;## ## ##??????????? | | ????????????# % % ###????????? | | ????????????# @% g ???????? | | ?????????? [s[g % ???????? | | ?????????????###########s*!;; ## #??????????? | | ?????????????????????###[%*;# ## #??????????? | | ?????????????????????#%%!% s ?????????? | | ?????????????????????#*!%=! s #????????? | | ?????????????????????#=[![!= s ?????????? | | ?????????????????????#C![!! s ?????????? | | ?????????????????????###]| ## ## ##?????????? | | ???????????????????????#= ;# ## "#?????????? | | ???????????????????????# [% ????????? | | ???????????????????????#*=%* ????????? | | ???????????????????????#[ *[= ????????? | | ???????????????????????## =## ######??????????? | | ????????????????????????# %## #???????????????? | | ????????????????????????# "#?####???????????????? | | ????????????????????????# ##????????????????????? | | ????????????????????????# #?????????????????????? | | ????????????????????????# #?????????????????????? | | ????????????????????????# #?????????????????????? | | ######################### #?????????????????????? | | %#?????????????????????? | | #?????????????????????? | | ######### #?????????????????????? | | #???????# #?????????????????????? | +----------------------------------------------------+ Best States ------------- Heat Dissipation 71 Coolant Potential 100 Energy Generation 23 Energy Capacity 650 Matter Stores 504 Matter Capacity 550 Sight Range 22 Terrain Scan Density 85 ECM Strength 2 Power Amplification 40 EM Shielding 2 Armor Coverage 1225 Resistance: TH 10 Core Shielding 20 Phase Shifting 5 Evasion (%) 45 Targeting Accuracy 8 Armor Integrity Analysis 30 Recoil Reduction 4 Kinecelleration 40 Offensive Hacking 28 Defensive Hacking 10 Relay Coupler Types 5 Relay Coupler Value 101 Authchip Count 1 Item Schematics ----------------- None Robot Schematics ------------------ None Fabricated ------------ Armor Integrity Analyzer | x2 | -7/Factory | Preloaded Hyp. Coil Gun | x2 | -6/Factory | Preloaded Repaired ---------- Centrium Heavy Treads | 8% | -5/Factory Studied --------- Arm. Huge Wheel | -7/Factory | Hacked Imp. Deuterium Engine | -7/Factory | Hacked Remote Datajack | -7/Factory | Hacked Hvy. Missile Launcher | -7/Factory | Hacked Arm. Wheel | -7/Factory | Hacked Powered Hammer | -7/Factory | Hacked Lrn. Missile Launcher | -5/Factory | Hacked Imp. Remote Datajack | -5/Factory | Hacked Alien Tech Used ----------------- None Achievements -------------- Hammer Time Zeroed Repercussions Challenges ------------ None Game ------ Seed TargetingDeepStripper Manual? 0 Play Time 03:52:54 Cumulative 568.5 hours Start 2026.03.22 @ 09:17:43 End 2026.04.09 @ 18:03:44 Sessions 9 Manual Loads 0 Difficulty Rogue Special Mode None Game No. 239 Rogue 239 Adventurer 0 Explorer 0 Win Type - Total 18 Types 16/0/1/1/0/0/0/0/0/0 Lore% 81 Gallery% 74 Achievement% 58 Wizard Run 0 Options --------- Layout 0 ASCII 0 Keyboard 0 Movement Numpad Keybinds 0 Fullscreen 1 Font 24/X11 Map View 76x50 Zoom Use 0% Tactical HUD 1 Map Filters NONE Filters NONE Steam 1 RUN: 675bc693-011c-488f-8f9a-a89fb27d3951